bitfinex-derivatives/quotes_ETHF0:USTF0_20250804
["timestamp","ask_amount","ask_price","bid_price","bid_amount"]
[1754314491042,23.9105,3564.5,3564.4,0.3128]
[1754314491242,0.56108,3564.4,3564.2,0.56111]
[1754314491433,0.7607,3564.3,3564.2,0.87391]
[1754314491633,0.7607,3564.3,3564.2,1.18701]
[1754314491843,23.1498,3564.5,3564.4,0.56108]
[1754314492039,23.6115,3564.5,3564.4,1.18698]
[1754314492432,3.2078,3565.1,3564.4,1.1025]
[1754314492635,3.2078,3565.5,3565.3,0.56094]
[1754314492838,1.00358668,3565.8,3565.7,0.87398]
[1754314493036,3.2078,3565.9,3565.7,0.87398]
[1754314493037,3.2078,3565.9,3565.7,1.35058]
[1754314493240,19.929,3566.2,3566.1,0.3131]
[1754314493440,20.09961097,3566.2,3566.1,1.1025]
[1754314493643,0.6051,3565.9,3565.7,0.3128]
[1754314493838,0.7607,3565.8,3565.7,0.3128]
[1754314494037,0.4617,3565.7,3565.4,0.3128]
[1754314494243,0.4617,3565.5,3565.4,0.6259]
[1754314494446,0.7607,3565.5,3565.4,0.6259]
[1754314495349,19.952,3565.9,3565.8,0.87366]
[1754314495645,19.952,3565.9,3565.8,1.66336]
[1754314495846,0.4617,3566.3,3566.2,0.5608]
[1754314496046,20.4037,3566.3,3566.2,1.6633]
[1754314496248,20.4037,3566.3,3566.2,1.1025]
[1754314496745,20.7027,3566.3,3566.2,0.3128]
[1754314497638,19.942,3566.3,3566.2,1.1025]
[1754314497838,20.7027,3566.3,3566.2,0.6259]
[1754314498942,19.942,3566.3,3566.2,1.1025]
[1754314499142,20.7027,3566.3,3566.2,0.7894]
[1754314499447,20.4037,3566.3,3566.2,1.1025]
[1754314500149,3.2078,3566.4,3566.3,1.66329]
[1754314500348,23.8845,3566.4,3566.3,0.6259]
[1754314500549,0.299,3565.8,3565.5,1.1025]
[1754314500741,23.1228,3565.7,3565.5,0.56091]
[1754314501047,19.923,3565.7,3565.6,4.687272]
[1754314501646,19.923,3566.2,3566.1,0.7897]
[1754314501851,23.1368,3566.5,3566.4,1.66327]
[1754314502647,19.929,3566.5,3566.4,1.66327]
[1754314502844,0.3061,3567.2,3566.2,3.2078]
[1754314502845,0.4617,3567.9,3567.7,0.3128]
[1754314503048,2.00358668,3568.0,3567.7,0.56056]
[1754314503049,1.79334813,3568.0,3567.7,0.56056]
[1754314503248,1.0,3568.0,3567.8,0.56054]
[1754314503645,1.0,3568.0,3567.9,1.1025]
[1754314504051,1.7607,3568.0,3567.9,0.3128]
[1754314504552,1.0,3568.0,3567.9,0.6259]
[1754314504747,1.7607,3568.0,3567.9,0.3128]
[1754314505046,1.0,3568.0,3567.9,0.3128]
[1754314505351,1.0,3568.0,3567.9,4.687272]
[1754314505952,1.7607,3568.0,3567.9,4.374172]
[1754314506146,1.0,3568.0,3567.9,4.687272]
[1754314506954,0.6793,3568.0,3567.9,4.687272]
[1754314508049,1.4471,3568.0,3567.9,3.897872]
[1754314508249,1.7461,3568.0,3567.9,3.897872]
[1754314508456,1.4471,3568.0,3567.9,3.897872]
[1754314508754,0.6793,3568.0,3567.9,4.687272]
[1754314509452,1.4471,3568.0,3567.9,4.687272]
[1754314509648,0.6793,3568.0,3567.9,4.687272]
[1754314510255,0.3586,3568.0,3567.9,4.687272]
[1754314510554,3.2078,3568.7,3568.6,1.62952]
[1754314510849,3.99783146,3568.7,3568.6,1.62952]
[1754314511554,5.05933146,3568.7,3568.6,1.32662]
[1754314511952,4.31653146,3568.7,3568.6,1.32662]
[1754314512146,0.3187,3568.5,3568.0,0.2976]
[1754314512350,1.0615,3568.3,3568.1,0.56049]
[1754314512556,1.0615,3568.2,3568.1,0.56049]
[1754314512855,1.0615,3568.0,3567.9,3.584772]
[1754314513251,19.926,3568.4,3568.2,0.56049]
[1754314513447,3.2078,3568.6,3568.5,1.0691]
[1754314513853,1.00358668,3569.3,3568.8,1.0691]
[1754314514054,0.78954984,3569.2,3569.1,1.0691]
[1754314514356,0.68308668,3569.5,3569.4,0.5603]
[1754314514559,2.00940649,3570.0,3569.8,0.56024]
[1754314514759,2.00940649,3570.2,3570.0,0.5602]
[1754314515250,0.73464649,3570.1,3570.0,0.5602]
[1754314515451,0.2937,3570.8,3570.6,0.56011]
[1754314515648,0.2937,3570.8,3570.3,1.4004]
[1754314515851,0.2937,3570.8,3570.6,0.56011]
[1754314516051,0.2937,3570.8,3565.1,2.48287632]
[1754314516052,1.0,3571.0,3570.9,0.56006]
[1754314516252,1.0,3571.0,3570.9,3.76786]
[1754314517058,3.2078,3572.4,3570.9,3.2078]
[1754314517253,3.2078,3572.4,3571.6,3.2078]
[1754314517455,0.2937,3572.2,3571.6,3.2078]
[1754314517759,40.357,3572.9,3572.6,0.5598]
[1754314517760,3.2078,3572.8,3572.6,0.5598]
[1754314517956,2.48462216,3573.0,3572.8,0.55975]
[1754314518268,0.2937,3573.1,3572.9,3.2078]
[1754314518558,2.48462216,3573.1,3572.7,0.55978]
[1754314518755,0.6124,3573.0,3572.7,0.55978]
[1754314518949,3.2078,3573.3,3572.6,0.55979]
[1754314519149,5.69242216,3573.3,3572.5,3.2078]
[1754314519765,5.98612216,3573.3,3572.5,3.2078]
[1754314520059,0.2937,3573.1,3572.7,0.55977]
[1754314520359,5.69242216,3573.3,3573.0,0.55973]
[1754314520558,3.47844864,3573.9,3573.0,0.55973]
[1754314520559,3.2078,3573.8,3573.3,0.55968]
[1754314520761,3.2078,3573.8,3573.0,3.2078]
[1754314520961,2.77832216,3574.2,3573.4,3.2078]
[1754314521159,0.2937,3574.2,3573.4,3.2078]
[1754314521355,2.48462216,3574.5,3573.8,3.2078]
[1754314521554,2.48462216,3574.5,3573.9,0.55959]
[1754314521754,0.2937,3574.6,3573.9,0.55959]
[1754314521962,0.6124,3574.6,3573.9,0.55959]
[1754314522154,19.971,3575.2,3574.0,1.39893]
[1754314522358,0.2937,3575.1,3574.5,0.5595]
[1754314522765,0.4491,3575.0,3574.4,3.2078]
[1754314522962,0.7678,3574.8,3574.4,3.2078]
[1754314523162,0.6124,3574.6,3574.4,3.76731]
[1754314523360,0.2937,3575.0,3574.4,3.2078]
[1754314523563,1.0615,3575.0,3574.4,3.76731]
[1754314523768,1.62099,3574.6,3574.0,3.2078]
[1754314523960,1.0615,3574.7,3574.0,3.2078]
[1754314524163,1.0615,3574.6,3574.0,3.2078]
[1754314524461,3.2078,3574.8,3574.0,3.2078]
[1754314524662,0.2937,3575.0,3574.5,0.5595]
[1754314524859,0.2937,3575.0,3574.4,3.2078]
[1754314525060,0.4491,3574.6,3574.4,3.2078]
[1754314525260,0.6124,3575.1,3574.5,3.584772]
[1754314525667,3.2078,3575.2,3574.5,3.584772]
[1754314525860,1.0615,3575.1,3574.8,3.2078]
[1754314526059,0.6124,3575.0,3574.9,0.55944]
[1754314526260,1.0615,3575.5,3574.8,3.2078]
[1754314526467,1.0615,3575.4,3574.8,3.2078]
[1754314526663,1.0615,3575.3,3574.8,3.2078]
[1754314526866,0.72706239,3575.5,3574.8,3.76725]
[1754314527068,0.72706239,3575.5,3574.8,3.2078]
[1754314527263,0.7678,3575.2,3574.9,0.55944]
[1754314527470,0.4491,3575.1,3574.9,0.55944]
[1754314527675,0.3187,3575.4,3575.3,0.55937]
[1754314527968,0.6124,3575.4,3575.3,0.55937]
[1754314528171,1.0615,3575.8,3575.7,0.55931]
[1754314528362,0.6124,3575.8,3575.7,0.55931]
[1754314528667,0.2937,3576.8,3576.6,0.55917]
[1754314528871,0.2937,3576.8,3576.7,0.55915]
[1754314529168,0.2937,3577.2,3576.9,0.55912]
[1754314529365,1.97609109,3577.5,3576.9,3.88622]
[1754314529668,2.26979109,3577.6,3576.9,3.88622]
[1754314530266,0.2937,3577.6,3577.5,0.55903]
[1754314530764,1.0615,3577.6,3577.5,0.55903]
[1754314531063,1.97609109,3577.9,3577.8,0.75088]
[1754314531267,0.6124,3578.2,3577.2,0.0725]
[1754314531268,2.26979109,3578.2,3578.1,0.55894]
[1754314531467,0.2937,3578.2,3578.1,3.95864]
[1754314531669,0.2937,3578.5,3578.4,0.55889]
[1754314532170,7.92162879,3580.7,3580.6,0.55855]
[1754314532468,6.65901879,3580.7,3580.6,2.98328005]
[1754314532663,3.47844864,3581.3,3581.2,0.55845]
[1754314532869,5.02711834,3581.8,3581.2,3.09555488]
[1754314533059,0.3187,3581.8,3581.6,3.2078]
[1754314533262,0.7678,3581.7,3581.6,3.2078]
[1754314533458,0.3187,3581.7,3581.6,3.2078]
[1754314533671,0.7678,3581.8,3581.6,3.2078]
[1754314533967,0.24722423,3581.9,3581.7,0.2976]
[1754314534263,0.24722423,3581.9,3581.6,3.2078]
[1754314534264,0.24722423,3581.9,3581.6,4.06378]
[1754314534465,5.02711834,3584.0,3582.3,0.3029]
[1754314534662,0.4491,3583.8,3582.8,3.2078]
[1754314534970,5.02711834,3584.0,3583.4,3.2078]
[1754314535165,3.2078,3583.9,3583.5,3.584772]
[1754314535372,5.02711834,3584.3,3583.5,3.584772]
[1754314535564,3.59207834,3584.3,3584.2,0.6005]
[1754314535768,3.2078,3586.2,3584.0,3.2078]
[1754314536070,0.4491,3586.4,3585.4,0.55779]
[1754314536266,0.7428,3586.4,3585.7,3.2078]
[1754314536468,3.2078,3586.5,3585.7,3.2078]
[1754314536661,3.2078,3586.5,3585.7,3.76555]
[1754314537171,0.2937,3587.1,3586.5,0.55762]
[1754314537361,0.2937,3587.1,3584.5,0.50377411]
[1754314537362,3.2078,3586.6,3585.2,3.2078]
[1754314537562,0.6124,3587.3,3586.7,0.55758]
[1754314537773,0.43967718,3586.8,3586.1,3.2078]
[1754314538080,0.4491,3587.5,3586.5,3.2078]
[1754314538380,0.68484122,3588.8,3587.4,3.2078]
[1754314538574,0.68484122,3588.8,3586.4,40.243]
[1754314538575,3.2078,3589.3,3587.9,3.2078]
[1754314538781,3.2078,3589.3,3588.4,3.2078]
[1754314538977,3.2078,3589.5,3588.8,3.2078]
[1754314539176,3.5265,3590.3,3589.2,3.2078]
[1754314539372,3.2078,3589.4,3588.6,3.2078]
[1754314539578,0.6124,3589.2,3588.2,3.2078]
[1754314539881,3.5015,3589.9,3588.6,3.7651]
[1754314540084,3.5015,3589.9,3589.0,3.5179]
[1754314540280,0.4621,3589.8,3588.7,3.894872]
[1754314540579,3.2078,3589.9,3588.7,3.894872]
[1754314540580,0.55716,3589.5,3588.7,3.584772]
[1754314540776,0.55722,3589.2,3588.7,3.584772]
[1754314541078,2.43287127,3590.0,3588.8,0.55727]
[1754314541273,0.4621,3589.9,3589.3,3.2078]
[1754314541680,0.4621,3589.9,3589.1,0.3101]
[1754314541681,4.1539,3590.5,3589.8,0.55711]
[1754314541879,0.4621,3590.4,3590.1,0.55705]
[1754314542075,0.4621,3590.4,3589.7,3.5179]
[1754314542277,0.4621,3590.4,3589.3,3.2078]
[1754314542477,1.4082,3590.4,3589.7,3.2078]
[1754314542681,1.94237963,3589.8,3589.7,3.5179]
[1754314542881,1.94237963,3589.9,3589.8,1.17721]
[1754314543183,3.6699,3590.5,3589.8,0.55711]
[1754314543383,0.4417,3590.2,3589.4,3.2078]
[1754314543585,0.4621,3590.1,3589.4,3.2078]
[1754314543882,0.9461,3590.3,3589.4,3.2078]
[1754314544089,1.4082,3589.4,3588.7,6.792572]
[1754314544282,1.4082,3589.4,3588.7,7.349852]
[1754314544586,0.9461,3589.4,3588.7,3.584772]
[1754314544787,1.4082,3589.0,3588.7,2.082072]
[1754314544987,1.4082,3588.8,3588.0,0.55739]
[1754314545186,1.4082,3588.8,3587.2,0.3101]
[1754314545187,0.8866,3589.2,3588.8,0.55726]
[1754314545390,3.2078,3589.7,3589.1,0.55721]
[1754314545592,0.3822,3589.7,3589.4,1.06727]
[1754314545886,0.4621,3589.9,3589.7,0.55713]
[1754314546186,5.63571776,3590.5,3590.3,0.55703]
[1754314546380,2.42791776,3590.4,3590.2,0.55705]
[1754314546585,0.14949189,3590.3,3590.2,0.55705]
[1754314546786,0.53169189,3590.9,3590.2,1.0044]
[1754314546986,0.65389189,3590.9,3590.5,0.55701]
[1754314547191,0.65389189,3590.9,3589.0,1.39308]
[1754314547192,0.4621,3590.5,3590.0,3.2078]
[1754314547391,0.8866,3590.4,3590.1,0.55707]
[1754314547694,0.55699,3590.6,3590.0,3.2078]
[1754314547989,0.3822,3590.4,3590.0,3.2078]
[1754314548194,3.2078,3590.6,3589.6,3.2078]
[1754314548384,0.14949189,3590.5,3590.4,3.2078]
[1754314548587,1.03609189,3590.8,3590.5,0.557]
[1754314548791,0.14949189,3590.9,3590.7,0.55697]
[1754314548985,0.14949189,3590.9,3590.4,3.2078]
[1754314548986,3.40497228,3590.8,3590.5,0.4943]
[1754314549189,0.14949189,3590.7,3590.4,3.2078]
[1754314549386,0.8866,3590.6,3590.4,3.2078]
[1754314549695,0.14949189,3590.6,3590.4,3.76482]
[1754314549989,2.43398569,3590.6,3590.5,0.5101]
[1754314550290,2.43398569,3590.6,3590.5,5.593972]
[1754314550291,0.14932072,3590.6,3590.5,5.593972]
[1754314550487,2.59232052,3591.0,3590.9,1.4522]
[1754314550688,2.59232052,3591.0,3590.9,4.66]
[1754314550885,0.15639823,3591.0,3590.9,0.9579]
[1754314551088,9.12e-06,3591.0,3590.9,4.66]
[1754314551383,0.00797605,3591.3,3591.2,1.4522]
[1754314551584,4.41058958,3592.0,3591.2,1.39224]
[1754314551786,1.0,3592.0,3591.7,0.55681]
[1754314551985,0.36174,3592.0,3591.9,2.00899]
[1754314552187,0.97098958,3592.6,3591.8,0.9421]
[1754314552393,0.14898958,3592.6,3592.4,3.2078]
[1754314552591,0.4621,3593.4,3593.3,0.19445971]
[1754314552796,4.85589395,3593.9,3593.5,0.55653]
[1754314552987,4.85589395,3593.9,3593.4,3.2078]
[1754314553190,4.85589395,3593.9,3593.8,3.2078]
[1754314553388,8.50539395,3594.6,3593.8,3.2078]
[1754314553591,8.06369395,3594.6,3594.1,0.55644]
[1754314553785,0.9665,3594.2,3593.8,3.2078]
[1754314554090,8.06369395,3594.6,3593.3,3.2078]
[1754314554091,0.4621,3593.9,3593.3,3.2078]
[1754314554296,3.2078,3594.3,3593.4,3.2078]
[1754314554591,4.85589395,3594.4,3592.8,3.2078]
[1754314554592,3.2078,3593.6,3592.8,3.2078]
[1754314554785,0.4621,3593.7,3592.8,3.2078]
[1754314554984,0.55652,3593.6,3592.8,3.2078]
[1754314555189,0.5044,3593.9,3593.2,3.2078]
[1754314555190,0.55649,3593.8,3593.2,3.2078]
[1754314555385,1.4082,3593.7,3593.4,0.55656]
[1754314555589,0.4621,3593.6,3593.4,0.55656]
[1754314555789,0.4417,3593.2,3592.9,3.584772]
[1754314555990,4.616,3593.0,3592.9,2.082072]
[1754314556198,0.5044,3592.4,3591.7,3.2078]
[1754314556493,0.4114,3592.2,3591.7,3.2078]
[1754314556793,1.3916,3592.9,3592.0,3.2078]
[1754314556794,1.3779,3592.1,3592.0,3.2078]
[1754314557198,0.9158,3592.1,3592.0,3.2078]
[1754314557394,1.93462,3592.4,3592.0,3.2078]
[1754314557697,0.5044,3592.4,3592.0,3.2078]
[1754314557997,0.5044,3592.1,3591.6,0.55683]
[1754314558193,0.55679,3591.9,3591.4,3.2078]
[1754314558399,0.9158,3591.7,3591.4,0.55686]
[1754314558598,0.9158,3591.5,3591.3,3.2078]
[1754314558795,0.9665,3591.8,3591.3,0.5101]
[1754314559092,1.3779,3591.9,3590.8,3.2078]
[1754314559401,0.9158,3590.8,3590.7,0.55697]
[1754314559599,0.9158,3591.0,3590.4,3.2078]
[1754314559799,0.9665,3591.5,3590.8,3.2078]
[1754314559995,0.4114,3591.1,3590.8,3.2078]
[1754314560293,0.96831,3591.1,3590.9,3.584772]
[1754314560496,1.93483,3591.0,3590.9,3.584772]
[1754314560699,0.55709,3590.0,3589.8,3.2078]
[1754314560890,4.60019,3590.9,3589.6,0.55713]
[1754314561196,3.2078,3590.8,3590.2,3.2078]
[1754314561398,0.55702,3590.4,3590.0,0.5101]
[1754314561696,3.2078,3590.6,3589.4,0.5101]
[1754314561895,1.39226,3591.2,3589.7,0.4943]
[1754314561896,3.2078,3591.0,3589.7,0.4943]
[1754314562097,2.45590882,3591.4,3589.1,1.39303]
[1754314562098,3.2078,3589.8,3589.4,0.55717]
[1754314562297,0.55702,3590.4,3589.5,3.2078]
[1754314562599,0.0484834,3590.9,3589.1,0.55722]
[1754314562600,3.2078,3589.7,3589.1,0.55722]
[1754314562795,3.2078,3589.7,3588.9,1.00307889]
[1754314562796,3.2078,3589.2,3588.9,1.00307889]
[1754314563095,0.55724,3589.0,3588.9,1.00307889]
[1754314563304,3.76501,3589.2,3588.9,1.00307889]
[1754314563500,0.1103,3589.1,3588.9,1.00307889]
[1754314563703,0.1097,3589.6,3589.3,0.55719]
[1754314563898,3.3175,3589.8,3589.6,0.55714]
[1754314564196,3.2078,3590.2,3589.9,0.5571]
[1754314564396,3.2078,3590.2,3589.8,0.55711]
[1754314564597,3.2078,3590.2,3589.9,0.55709]
[1754314564598,0.1097,3590.1,3589.9,0.55709]
[1754314564792,0.1097,3590.5,3589.8,1.39277]
[1754314564993,0.1097,3591.0,3590.8,0.55695]
[1754314565197,0.55696,3590.8,3590.6,0.5101]
[1754314565403,0.1098,3590.7,3590.3,3.2078]
[1754314565698,23.93617,3591.4,3589.4,4.1499]
[1754314565699,0.77653,3590.4,3589.4,4.1499]
[1754314565897,0.1097,3590.3,3589.4,3.2078]
[1754314566092,0.66661,3591.1,3590.5,0.557]
[1754314566293,0.66661,3591.1,3590.0,0.4943]
[1754314566294,0.1097,3591.1,3590.0,0.4943]
[1754314566499,0.1097,3591.1,3590.3,3.2078]
[1754314566694,0.1097,3591.1,3590.0,0.4943]
[1754314566900,0.55699,3590.6,3590.2,0.55705]
[1754314567099,0.55699,3590.6,3590.0,0.4943]
[1754314567403,0.55699,3590.6,3589.8,3.7179]
[1754314567404,0.1097,3590.2,3589.8,0.72923077]
[1754314567600,3.4273,3590.0,3589.9,0.54825889]
[1754314567797,0.5571,3589.9,3589.7,0.34066997]
[1754314567996,0.55721,3589.2,3588.9,1.00307889]
[1754314568201,3.2078,3589.0,3588.9,1.00307889]
[1754314568400,3.76504,3589.0,3588.9,1.00307889]
[1754314569101,3.76504,3589.0,3588.9,1.73230966]
[1754314569303,3.76504,3589.0,3588.9,1.00307889]
[1754314569497,3.76504,3589.0,3588.8,1.45520618]
[1754314569498,0.55727,3588.8,3588.6,1.45520618]
[1754314569698,0.55736,3588.2,3588.1,1.94915986]
[1754314569909,1.22057054,3588.1,3587.6,2.4473649]
[1754314570106,3.53888202,3588.7,3586.6,3.5175811]
[1754314570107,0.0081,3587.2,3586.6,3.5175811]
[1754314570296,4.60144,3587.7,3586.0,3.7524]
[1754314570297,0.0081,3586.6,3586.0,3.7524]
[1754314570499,0.55762,3586.6,3586.1,0.55769]
[1754314570704,0.55762,3586.6,3586.3,0.5446]
[1754314570911,40.112,3587.1,3586.8,0.55757]
[1754314571111,40.112,3587.1,3587.0,1.5742]
[1754314571301,40.112,3587.1,3587.0,2.94521914]
[1754314571501,22.544,3588.1,3587.0,6.15301914]
[1754314571703,3.2078,3588.2,3587.7,0.55744]
[1754314572001,40.112,3588.4,3588.1,0.5446]
[1754314572205,0.55731,3588.6,3588.3,4.47978937]
[1754314572206,22.542,3588.6,3588.3,4.47978937]
[1754314572405,22.542,3588.6,3588.4,1.28471937]
[1754314572609,0.55732,3588.5,3588.4,0.5446]
[1754314572809,22.531,3588.5,3588.2,0.5446]
[1754314573007,23.07932,3588.5,3588.3,0.5446]
[1754314573204,0.55739,3588.0,3587.9,3.2078]
[1754314573505,0.55746,3587.6,3587.3,3.2078]
[1754314573706,0.55753,3587.1,3586.8,0.5446]
[1754314573908,3.2078,3587.2,3586.5,0.5446]
[1754314574104,3.2078,3587.2,3586.6,2.47322914]
[1754314574308,0.55758,3586.8,3586.4,0.55763]
[1754314574806,3.2078,3587.2,3586.6,0.55761]
[1754314575012,22.52,3587.1,3586.7,1.37101914]
[1754314575309,3.2078,3587.2,3586.9,0.55756]
[1754314575503,3.2078,3587.2,3587.1,1.10213]
[1754314575699,3.2078,3587.2,3587.1,0.5446]
[1754314576006,22.509,3587.2,3587.1,3.50274914]
[1754314577010,22.499,3587.4,3587.3,0.5446]
[1754314577411,0.5575,3587.3,3587.0,3.2078]
[1754314577612,0.008,3587.2,3586.8,3.2078]
[1754314577802,0.55764,3586.5,3586.3,0.5446]
[1754314578209,3.2078,3587.2,3586.4,1.37101914]
[1754314578412,22.492,3587.4,3587.3,1.1021]
[1754314578610,22.494,3588.0,3587.6,1.92847914]
[1754314578810,0.55741,3587.9,3587.6,7.43795488]
[1754314579018,22.494,3588.0,3587.6,6.71047914]
[1754314579317,1.39299,3589.3,3588.3,0.5446]
[1754314579318,0.55721,3589.2,3588.3,0.5446]
[1754314579514,22.487,3589.1,3588.6,1.37101914]
[1754314579710,40.135,3590.0,3589.6,0.55713]
[1754314580008,22.48,3589.9,3589.8,0.5446]
[1754314580207,22.48,3589.9,3589.8,3.7524]
[1754314580407,22.48,3589.9,3589.8,0.5446]
[1754314580612,40.135,3590.0,3589.9,1.1017]
[1754314580816,62.601,3590.0,3589.9,4.872]
[1754314581015,40.135,3591.1,3590.5,0.557]
[1754314581310,0.55693,3591.0,3590.5,0.55701]
[1754314581516,40.135,3591.1,3590.5,1.1071]
[1754314581707,22.448,3591.1,3591.0,1.92794914]
[1754314582014,0.13160859,3591.1,3591.0,2.94521914]
[1754314582215,0.13160859,3591.8,3591.6,1.1071]
[1754314582515,22.436,3591.7,3591.3,3.7703]
[1754314582710,0.13160859,3591.6,3591.5,1.37101914]
[1754314583012,0.13160859,3591.6,3590.9,4.2195]
[1754314583208,22.98585,3591.5,3591.3,0.5446]
[1754314583408,0.13160859,3591.4,3591.3,0.5446]
[1754314583609,22.55160859,3591.4,3591.3,0.5446]
[1754314583810,22.55160859,3591.4,3591.1,0.5625]
[1754314583811,0.55688,3591.3,3591.1,0.5625]
[1754314584012,0.13160859,3591.2,3591.1,0.5446]
[1754314584309,0.13160859,3591.2,3590.1,0.72765903]
[1754314584310,0.55699,3590.6,3590.5,1.2385728]
[1754314584510,0.68860859,3590.6,3590.2,2.06499194]
[1754314584723,0.13201261,3590.5,3590.4,1.5742]
[1754314585014,0.13201261,3590.5,3590.4,5.4759728]
[1754314585206,0.13201261,3590.5,3590.4,6.84699194]
[1754314585410,0.13201261,3590.5,3590.4,6.84704954]
[1754314585706,0.55683,3591.7,3591.1,0.5446]
[1754314585905,22.93984,3591.6,3591.4,1.37101914]
[1754314586111,0.55684,3591.6,3591.5,1.1071]
[1754314586306,22.93984,3591.6,3591.5,1.1071]
[1754314586512,0.5569,3591.2,3591.0,3.7703]
[1754314586712,0.5569,3591.2,3591.1,1.1071]
[1754314586913,0.5569,3591.2,3591.1,0.5446]
[1754314587312,0.55685,3591.5,3591.3,0.5446]
[1754314587519,0.55685,3591.5,3591.4,1.91561914]
[1754314587810,0.55683,3591.7,3591.4,1.37101914]
[1754314588010,40.13,3591.9,3591.5,0.55685]
[1754314588216,22.333,3591.8,3591.7,1.5742]
[1754314588510,40.13,3591.9,3591.2,1.37101914]
[1754314588721,40.68679,3591.9,3591.8,0.5446]
[1754314588911,63.01679,3591.9,3591.8,1.23831669]
[1754314589609,63.01679,3591.9,3591.8,0.69371669]
[1754314589812,63.14869,3591.9,3591.8,0.69371669]
[1754314590017,63.14869,3591.9,3591.4,0.7183903]
[1754314590018,0.55685,3591.5,3591.4,0.7183903]
[1754314590317,0.55685,3591.5,3590.9,1.99694626]
[1754314590318,0.55693,3591.0,3590.9,0.5446]
[1754314590513,22.89593,3591.0,3590.9,0.5446]
[1754314590907,0.55693,3591.0,3590.9,0.5446]
[1754314591219,1.39218,3591.4,3591.0,0.5446]
[1754314591522,0.55699,3590.6,3590.5,1.5742]
[1754314591719,0.55698,3590.7,3590.6,2.94521914]
[1754314591921,3.2078,3591.1,3590.6,1.5742]
[1754314592121,0.55696,3590.8,3590.7,0.5446]
[1754314592420,0.55696,3590.8,3589.3,1.39298]
[1754314592421,0.55705,3590.2,3590.1,0.5446]
[1754314593317,0.55713,3589.8,3589.5,4.782]
[1754314593511,22.301,3590.2,3589.5,4.782]
[1754314593512,0.55714,3589.6,3589.5,0.4671]
[1754314593713,22.301,3590.2,3589.6,1.37101914]
[1754314593714,0.55712,3589.8,3589.6,1.37101914]
[1754314593911,0.55711,3589.9,3589.8,1.37101914]
[1754314594110,22.86611,3589.9,3589.8,2.94521914]
[1754314594422,0.5571,3589.9,3589.8,1.91561914]
[1754314594723,22.8711,3589.9,3589.8,2.94521914]
[1754314595318,0.5571,3589.9,3589.8,2.94521914]
[1754314595519,22.8531,3589.9,3589.8,2.94521914]
[1754314595813,22.8531,3589.9,3589.5,3.2078]
[1754314595814,0.55714,3589.6,3589.5,3.7524]
[1754314596214,0.55714,3589.6,3589.5,0.5446]
[1754314596417,0.55728,3588.7,3588.6,4.3149]
[1754314596621,0.55728,3588.8,3588.7,1.5742]
[1754314596822,0.55721,3589.3,3589.1,1.37101914]
[1754314597018,0.55721,3589.3,3589.1,2.94521914]
[1754314597219,0.55721,3589.3,3589.2,1.1071]
[1754314597621,0.55727,3588.8,3588.7,0.5625]
[1754314597927,22.283,3589.3,3588.8,1.91561914]
[1754314597928,0.55726,3588.9,3588.8,1.91561914]
[1754314598118,3.2078,3589.6,3589.2,2.94521914]
[1754314598315,22.82316,3589.5,3589.4,0.5446]
[1754314598515,22.82316,3589.5,3589.1,3.7524]
[1754314598516,0.55721,3589.2,3589.1,3.7524]
[1754314598828,0.55721,3589.2,3588.7,0.5625]
[1754314598829,0.55727,3588.8,3588.7,0.5446]
[1754314599121,22.29,3588.8,3588.5,0.5446]
[1754314599321,0.55731,3588.6,3588.5,0.5446]
[1754314599522,0.55731,3588.6,3588.1,0.5625]
[1754314599523,0.55736,3588.2,3588.1,1.1071]
[1754314599719,0.55736,3588.2,3587.6,0.4671]
[1754314599720,0.55744,3587.7,3587.6,0.5625]
[1754314599925,0.55744,3587.7,3587.6,0.5446]
[1754314600217,0.55749,3587.4,3587.3,0.5625]
[1754314600423,0.55749,3587.4,3587.3,1.1281]
[1754314600621,0.55745,3587.7,3587.3,4.01165914]
[1754314600824,22.283,3587.5,3587.4,1.5891]
[1754314601020,22.83244,3587.8,3587.7,0.80385914]
[1754314601319,22.83244,3587.8,3587.7,1.36945914]
[1754314601529,3.2078,3588.2,3587.5,0.98076495]
[1754314601720,22.263,3588.1,3588.0,1.1234]
[1754314602224,0.0428,3588.0,3587.7,1.93987284]
[1754314602428,0.0428,3587.8,3587.2,6.09840033]
[1754314602620,3.2078,3588.2,3588.0,0.5578]
[1754314602916,3.2078,3588.2,3588.0,2.44823485]
[1754314603122,0.60019,3588.0,3587.8,2.44823485]
[1754314603315,0.55742,3587.8,3587.7,2.44823485]
[1754314603620,0.0428,3587.9,3587.7,2.44823485]
[1754314603621,0.55742,3587.9,3587.7,3.01383485]
[1754314603923,0.6002,3588.0,3587.6,3.7656]
[1754314604129,0.55745,3587.7,3587.2,3.5175811]
[1754314604425,3.2506,3587.7,3587.6,2.44898574]
[1754314604725,3.2506,3587.7,3587.5,2.44898574]
[1754314605026,3.2078,3587.7,3587.6,0.5656]
[1754314605227,25.4398,3587.7,3587.6,3.01458574]
[1754314605423,40.121,3587.9,3587.8,0.5656]
[1754314605623,62.329,3587.9,3587.8,0.5656]
[1754314605828,62.329,3587.9,3587.8,3.01458574]
[1754314606125,62.329,3587.9,3587.2,5.3770511]
[1754314606126,0.0428,3587.7,3587.4,4.6406611]
[1754314606327,62.32,3587.9,3587.7,0.55744]
[1754314606328,40.121,3587.9,3587.7,0.55744]
[1754314606525,40.121,3587.9,3587.8,4.7969]
[1754314606721,62.309,3587.9,3587.8,5.60075914]
[1754314606922,62.309,3587.9,3587.8,1.1234]
[1754314607121,62.86241,3587.9,3587.7,2.44944047]
[1754314607321,62.86241,3587.9,3587.3,5.1066811]